fUST/lending_fUST_20251012
["ID","MTS","AMOUNT","RATE_DAILY","PERIOD"]
[390951443,1760230255664,-198.76858008,0.00023204,2]
[390951444,1760230255673,-151.0,0.00023204,2]
[390951445,1760230255682,-500.0,0.00023206,2]
[390951446,1760230255691,-500.0,0.00023258,2]
[390951447,1760230255700,-245.0,0.00023258,2]
[390951448,1760230255709,-656.56469291,0.00023268,2]
[390951449,1760230255723,-660.50678658,0.00023268,2]
[390951450,1760230255732,-500.0,0.00023268,2]
[390951451,1760230255741,-1500.0,0.00023268,2]
[390951452,1760230255750,-1000.0,0.00023268,2]
[390951453,1760230255760,-1500.0,0.00023268,2]
[390951454,1760230255769,-1001.84242892,0.00023268,2]
[390951455,1760230255778,-1500.0,0.00023268,2]
[390951456,1760230255788,-321.53753827,0.00023268,2]
[390951457,1760230255796,-1500.0,0.00023268,2]
[390951458,1760230255806,-1500.0,0.00023268,2]
[390951459,1760230255815,-1001.60108235,0.00023268,2]
[390951460,1760230255825,-1500.0,0.00023268,2]
[390951461,1760230255834,-775.08535987,0.00023268,2]
[390951462,1760230255844,-1500.0,0.00023268,2]
[390951463,1760230255854,-1500.0,0.00023268,2]
[390951464,1760230255864,-1501.03087857,0.00023268,2]
[390951465,1760230255873,-1500.0,0.00023268,2]
[390951466,1760230255883,-1500.0,0.00023268,2]
[390951467,1760230255892,-1000.0,0.00023268,2]
[390951468,1760230255902,-1500.0,0.00023268,2]
[390951469,1760230255911,-1500.0,0.00023268,2]
[390951470,1760230255920,-1500.0,0.00023268,2]
[390951471,1760230255930,-1500.0,0.00023268,2]
[390951472,1760230255939,-1500.0,0.00023268,2]
[390951473,1760230255949,-638.06714122,0.00023268,2]
[390951474,1760230255958,-1500.0,0.00023268,2]
[390951475,1760230255968,-502.98383582,0.00023268,2]
[390951476,1760230255978,-1500.0,0.00023268,2]
[390951477,1760230255987,-1500.0,0.00023268,2]
[390951478,1760230255997,-501.52018692,0.00023268,2]
[390951479,1760230256006,-260.0,0.00023302,2]
[390951480,1760230256015,-500.0,0.00023313,2]
[390951481,1760230256025,-500.0,0.00023313,2]
[390951482,1760230256034,-4504.5,0.00023348,3]
[390951483,1760230256049,-2252.24,0.00023348,3]
[390951484,1760230256058,-1126.12,0.00023348,3]
[390951485,1760230256067,-750.76,0.00023348,3]
[390951486,1760230256079,-375.38,0.00023348,3]
[390951487,1760230256089,-5763.6,0.00023349,3]
[390951488,1760230256098,-500.0,0.00023358,2]
[390951489,1760230256107,-500.0,0.00023368,2]
[390951490,1760230256118,-500.0,0.00023368,2]
[390951491,1760230256128,-883.50604119,0.00023372,2]
[390951492,1760230256138,-2932.26075897,0.00023383,2]
[390951493,1760230256148,-7795.20343563,0.00023392,2]
[390951494,1760230256159,-1435.37882442,0.00023413,2]
[390951495,1760230256168,-500.0,0.00023423,2]
[390951496,1760230256177,-500.0,0.00023423,2]
[390951497,1760230256187,-262.31846715,0.00023423,2]
[390951498,1760230256196,-7160.0,0.00023426,3]
[390951499,1760230256205,-1567.70890803,0.0002343,3]
[390951500,1760230256215,-500.0,0.00023437,5]
[390951501,1760230256224,-1675.44869008,0.00023456,2]
[390951502,1760230256234,-500.0,0.00023477,2]
[390951503,1760230256243,-500.0,0.00023478,2]
[390951504,1760230256253,-1000.0,0.00023521,2]
[390951505,1760230256263,-1000.0,0.00023521,2]
[390951506,1760230256273,-502.93689473,0.00023521,2]
[390951507,1760230256283,-1000.0,0.00023521,2]
[390951508,1760230256292,-500.0,0.00023532,2]
[390951509,1760230256302,-500.0,0.00023532,2]
[390951510,1760230256311,-1000.0,0.00023536,2]
[390951511,1760230256321,-151.36574804,0.00023587,2]
[390951512,1760230256330,-340.42581412,0.00023587,2]
[390951513,1760230256340,-1393.6597297,0.00023606,2]
[390951514,1760230256349,-1229.66259232,0.00023616,2]
[390951515,1760230256359,-1492.0,0.00023616,2]
[390951516,1760230256369,-2000.0,0.00023616,2]
[390951517,1760230256378,-500.0,0.00023632,2]
[390951518,1760230256387,-913.46,0.00023686,2]
[390951519,1760230256397,-20746.26328358,0.00023698,2]
[390951520,1760230256406,-500.0,0.00023711,5]
[390951521,1760230256416,-500.0,0.00023721,2]
[390951522,1760230256426,-642.90531971,0.00023721,2]
[390951523,1760230256435,-1000.0,0.00023721,2]
[390951524,1760230256445,-1000.0,0.00023721,2]
[390951525,1760230256454,-1000.0,0.00023721,2]
[390951526,1760230256464,-1000.0,0.00023721,2]
[390951527,1760230256473,-1000.0,0.00023721,2]
[390951528,1760230256482,-500.6605246,0.00023721,2]
[390951529,1760230256492,-1000.0,0.00023721,2]
[390951530,1760230256501,-1000.0,0.00023721,2]
[390951531,1760230256511,-1122.50427265,0.00023721,2]
[390951532,1760230256520,-1000.0,0.00023721,2]
[390951533,1760230256537,-500.56035074,0.00023721,2]
[390951534,1760230256557,-500.0,0.00023721,2]
[390951535,1760230256569,-1000.0,0.00023721,2]
[390951536,1760230256580,-669.1166714,0.00023721,2]
[390951537,1760230256590,-1435.37882442,0.00023741,2]
[390951538,1760230256600,-474.3827425,0.00023754,2]
[390951539,1760230256611,-500.0,0.00023816,2]
[390951540,1760230256623,-500.0,0.00023816,2]
[390951541,1760230256632,-444.09120036,0.00023816,2]
[390951542,1760230256642,-2000.0,0.00023816,2]
[390951543,1760230256651,-2000.0,0.00023816,2]
[390951544,1760230256663,-629.48335055,0.00023816,2]
[390951545,1760230256673,-2007.73353099,0.00023816,2]
[390951546,1760230256683,-2000.0,0.00023816,2]
[390951547,1760230256694,-2000.0,0.00023816,2]
[390951548,1760230256703,-1501.71126757,0.00023816,2]
[390951549,1760230256714,-2000.0,0.00023816,2]
[390951550,1760230256724,-617.00993769,0.00023816,2]
[390951551,1760230256734,-2000.0,0.00023816,2]
[390951552,1760230256744,-2000.0,0.00023816,2]
[390951553,1760230256754,-380.52601766,0.00023816,2]
[390951554,1760230256764,-2000.0,0.00023816,2]
[390951555,1760230256773,-406.72294032,0.00023816,2]
[390951556,1760230256783,-1311.53373756,0.00023816,2]
[390951557,1760230256792,-360.0,0.0002385,2]
[390951558,1760230256801,-420.0,0.00023857,2]
[390951559,1760230256811,-420.0,0.00023857,2]
[390951560,1760230256820,-420.0,0.00023857,2]
[390951561,1760230256829,-420.0,0.00023857,2]
[390951562,1760230256839,-1680.0,0.00023858,2]
[390951563,1760230256848,-493.1867595,0.00023866,2]
[390951564,1760230256858,-1435.37882442,0.00023887,2]
[390951565,1760230256867,-158.93055,0.00023888,3]
[390951566,1760230256876,-500.0,0.00023906,2]
[390951567,1760230256886,-3765.98979313,0.00023921,2]
[390951568,1760230256895,-310.9675186,0.00023949,2]
[390951569,1760230256904,-1680.0,0.00023966,2]
[390951570,1760230256913,-500.0,0.00023973,2]
[390951571,1760230256922,-500.0,0.00023985,5]
[390951572,1760230256932,-20918.44,0.00024,2]
[390951573,1760230256941,-6757.97,0.00024,2]
[390951574,1760230256951,-25000.0,0.00024,2]
[390951575,1760230256959,-24999.99,0.00024,2]
[390951576,1760230256968,-10667.75,0.00024,2]
[390951577,1760230256977,-230.36,0.00024,2]
[390951578,1760230256987,-1870.22,0.00024,2]
[390951579,1760230256995,-25000.0,0.00024,2]
[390951580,1760230257005,-439.098643,0.00024,7]
[390951581,1760230257014,-439.098643,0.00024,7]
[390951582,1760230257023,-151.0,0.00024,7]
[390951583,1760230257033,-439.098643,0.00024,7]
[390951584,1760230257044,-151.0,0.00024,7]
[390951585,1760230257054,-439.098643,0.00024,7]
[390951586,1760230257063,-151.0,0.00024,7]
[390951587,1760230257073,-152.337827,0.00024,7]
[390951588,1760230257084,-151.0,0.00024,7]
[390951589,1760230257095,-151.0,0.00024,7]
[390951590,1760230257104,-244.492774,0.00024,7]
[390951591,1760230257114,-151.0,0.00024,7]
[390951592,1760230257124,-372.045092,0.00024,7]
[390951593,1760230257133,-372.045092,0.00024,7]
[390951594,1760230257142,-151.0,0.00024,7]
[390951595,1760230257151,-372.045092,0.00024,7]
[390951596,1760230257160,-151.0,0.00024,7]
[390951597,1760230257169,-372.045092,0.00024,7]
[390951598,1760230257178,-151.0,0.00024,7]
[390951599,1760230257187,-183.044696,0.00024,7]
[390951600,1760230257196,-183.044696,0.00024,7]
[390951601,1760230257205,-183.044696,0.00024,7]
[390951602,1760230257215,-183.044696,0.00024,7]
[390951603,1760230257224,-151.0,0.00024,7]
[390951604,1760230257233,-151.0,0.00024,7]
[390951605,1760230257242,-151.0,0.00024,7]
[390951606,1760230257251,-151.0,0.00024,2]
[390951607,1760230257261,-152.302711,0.00024,2]
[390951608,1760230257270,-151.0,0.00024,7]
[390951609,1760230257279,-151.0,0.00024,7]
[390951610,1760230257288,-151.0,0.00024,7]
[390951611,1760230257298,-151.0,0.00024,7]
[390951612,1760230257307,-151.0,0.00024,7]
[390951613,1760230257316,-151.0,0.00024,7]
[390951614,1760230257325,-151.0,0.00024,7]
[390951615,1760230257334,-151.0,0.00024,7]
[390951616,1760230257343,-151.0,0.00024,7]
[390951617,1760230257352,-151.0,0.00024,7]
[390951618,1760230257362,-151.0,0.00024,7]
[390951619,1760230257372,-151.0,0.00024,7]
[390951620,1760230257381,-547.335366,0.00024,7]
[390951621,1760230257391,-547.335366,0.00024,7]
[390951622,1760230257400,-547.335366,0.00024,7]
[390951623,1760230257409,-547.335366,0.00024,7]
[390951624,1760230257419,-151.0,0.00024,7]
[390951625,1760230257428,-151.0,0.00024,7]
[390951626,1760230257438,-151.0,0.00024,7]
[390951627,1760230257447,-151.0,0.00024,7]
[390951628,1760230257457,-151.0,0.00024,7]
[390951629,1760230257467,-151.0,0.00024,7]
[390951630,1760230257476,-163.551811,0.00024,7]
[390951631,1760230257485,-151.0,0.00024,7]
[390951632,1760230257495,-151.0,0.00024,7]
[390951633,1760230257504,-151.0,0.00024,7]
[390951634,1760230257513,-249.699503,0.00024,7]
[390951635,1760230257522,-249.699503,0.00024,7]
[390951636,1760230257531,-249.699503,0.00024,7]
[390951637,1760230257540,-249.699503,0.00024,7]
[390951638,1760230257549,-151.0,0.00024,7]
[390951639,1760230257558,-151.000001,0.00024,7]
[390951640,1760230257567,-192.099203,0.00024,7]
[390951641,1760230257576,-192.099203,0.00024,7]
[390951642,1760230257586,-192.099203,0.00024,7]
[390951643,1760230257595,-192.099203,0.00024,7]
[390951644,1760230257605,-151.0,0.00024,7]
[390951645,1760230257614,-151.0,0.00024,7]
[390951646,1760230257624,-151.0,0.00024,7]
[390951647,1760230257633,-151.0,0.00024,7]
[390951648,1760230257642,-151.0,0.00024,7]
[390951649,1760230257651,-151.0,0.00024,7]
[390951650,1760230257660,-151.0,0.00024,7]
[390951651,1760230257670,-190.760591,0.00024,7]
[390951652,1760230257679,-151.0,0.00024,7]
[390951653,1760230257688,-190.760591,0.00024,7]
[390951654,1760230257698,-190.760591,0.00024,7]
[390951655,1760230257707,-190.760591,0.00024,7]
[390951656,1760230257716,-186.648147,0.00024,7]
[390951657,1760230257726,-186.648147,0.00024,7]
[390951658,1760230257735,-186.648147,0.00024,7]
[390951659,1760230257744,-186.648147,0.00024,7]
[390951660,1760230257753,-151.0,0.00024,7]
[390951661,1760230257762,-151.0,0.00024,7]
[390951662,1760230257771,-410.651133,0.00024,7]
[390951663,1760230257781,-410.651133,0.00024,7]
[390951664,1760230257790,-410.651133,0.00024,7]
[390951665,1760230257799,-410.651133,0.00024,7]
[390951666,1760230257808,-151.0,0.00024,7]
[390951667,1760230257817,-151.0,0.00024,7]
[390951668,1760230257827,-151.0,0.00024,7]
[390951669,1760230257836,-184.750633,0.00024,7]
[390951670,1760230257845,-151.0,0.00024,7]
[390951671,1760230257854,-151.0,0.00024,7]
[390951672,1760230257863,-151.0,0.00024,7]
[390951673,1760230257873,-151.0,0.00024,7]
[390951674,1760230257883,-151.0,0.00024,7]
[390951675,1760230258023,-151.0,0.00024,7]
[390951676,1760230258032,-151.0,0.00024,7]
[390951677,1760230258045,-151.0,0.00024,7]
[390951678,1760230258055,-447.993979,0.00024,7]
[390951679,1760230258064,-447.993979,0.00024,7]
[390951680,1760230258073,-447.993979,0.00024,7]
[390951681,1760230258084,-447.993979,0.00024,7]
[390951682,1760230258094,-1000.0,0.00024068,2]
[390951683,1760230258103,-366.79694638,0.00024068,2]
[390951684,1760230258113,-1500.0,0.00024068,2]
[390951685,1760230258125,-154.809388,0.00024081,3]
[390951686,1760230258134,-158.93055,0.00024081,3]
[390951687,1760230258143,-2932.26075897,0.00024092,2]
[390951688,1760230258153,-7493.03771209,0.00024146,2]
[390951689,1760230258162,-723.727711,0.0002415,7]
[390951690,1760230258172,-723.727711,0.0002415,7]
[390951691,1760230258182,-723.727711,0.0002415,7]
[390951692,1760230258192,-723.727711,0.0002415,7]
[390951693,1760230258202,-151.0,0.0002415,7]
[390951694,1760230258211,-151.0,0.0002415,7]
[390951695,1760230258221,-151.0,0.0002415,7]
[390951696,1760230258230,-256.893011,0.0002415,7]
[390951697,1760230258239,-268.377962,0.0002415,7]
[390951698,1760230258249,-256.893011,0.0002415,7]
[390951699,1760230258258,-256.893011,0.0002415,7]
[390951700,1760230258268,-256.893011,0.0002415,7]
[390951701,1760230258278,-210.786716,0.0002415,7]
[390951702,1760230258287,-210.786716,0.0002415,7]
[390951703,1760230258297,-210.786716,0.0002415,7]
[390951704,1760230258307,-210.786716,0.0002415,7]
[390951705,1760230258316,-22693.59,0.0002415,2]
[390951706,1760230258326,-25000.0,0.0002415,2]
[390951707,1760230258335,-151.0,0.00024163,7]
[390951708,1760230258345,-154.78336,0.00024163,7]
[390951709,1760230258354,-554.809293,0.00024163,7]
[390951710,1760230258363,-151.0,0.00024163,7]
[390951711,1760230258375,-554.809293,0.00024163,7]
[390951712,1760230258385,-1946.97801829,0.00024164,2]
[390951713,1760230258394,-500.0,0.0002418,2]
[390951714,1760230258403,-1284.5778656,0.00024243,2]
[390951715,1760230258413,-21513.87502507,0.00024246,2]
[390951716,1760230258423,-151.0,0.00024246,7]
[390951717,1760230258432,-229.02777,0.00024246,7]
[390951718,1760230258442,-229.02777,0.00024246,7]
[390951719,1760230258451,-229.02777,0.00024246,7]
[390951720,1760230258462,-229.02777,0.00024246,7]
[390951721,1760230258471,-151.0,0.00024246,7]
[390951722,1760230258481,-151.0,0.00024246,7]
[390951723,1760230258490,-151.0,0.00024246,7]
[390951724,1760230258499,-151.0,0.00024246,7]
[390951725,1760230258508,-151.0,0.00024246,7]
[390951726,1760230258517,-151.0,0.00024246,7]
[390951727,1760230258527,-151.0,0.00024246,7]
[390951728,1760230258536,-151.0,0.00024246,7]
[390951729,1760230258545,-151.0,0.00024246,7]
[390951730,1760230258554,-162.666953,0.00024246,7]
[390951731,1760230258564,-1779.18578896,0.00024249,2]
[390951732,1760230258573,-151.0,0.00024258,7]
[390951733,1760230258582,-151.0,0.00024258,7]
[390951734,1760230258591,-151.0,0.00024258,7]
[390951735,1760230258600,-500.0,0.00024259,5]
[390951736,1760230258609,-500.0,0.00024268,2]
[390951737,1760230258618,-502.27474624,0.00024268,2]
[390951738,1760230258629,-188.03136191,0.00024268,2]
[390951739,1760230258638,-500.0,0.00024268,2]
[390951740,1760230258647,-500.0,0.00024268,2]
[390951741,1760230258656,-1500.0,0.00024268,2]
[390951742,1760230258666,-1500.0,0.00024268,2]
[390951743,1760230258675,-1502.45008947,0.00024268,2]
[390951744,1760230258686,-161.52818085,0.00024273,2]
[390951745,1760230258694,-154.809388,0.00024275,3]
[390951746,1760230258703,-158.93055,0.00024275,3]
[390951747,1760230258712,-25000.0,0.000243,2]
[390951748,1760230258721,-151.0,0.000243,7]
[390951749,1760230258730,-202.6244,0.000243,7]
[390951750,1760230258739,-202.6244,0.000243,7]
[390951751,1760230258748,-202.6244,0.000243,7]
[390951752,1760230258756,-202.6244,0.000243,7]
[390951753,1760230258766,-1567.70890803,0.000243,7]
[390951754,1760230258775,-1435.37882442,0.00024311,2]
[390951755,1760230258785,-523.45681931,0.00024354,2]
[390951756,1760230258794,-151.0,0.00024364,7]
[390951757,1760230258803,-151.0,0.00024364,7]
[390951758,1760230258813,-151.0,0.00024364,7]
[390951759,1760230258821,-151.0,0.00024364,7]
[390951760,1760230258830,-151.0,0.00024364,7]
[390951761,1760230258839,-151.0,0.00024364,7]
[390951762,1760230258848,-151.0,0.00024364,7]
[390951763,1760230258857,-151.0,0.00024364,7]
[390951764,1760230258866,-293.53439,0.00024364,7]
[390951765,1760230258876,-1000.0,0.00024364,2]
[390951766,1760230258885,-2500.0,0.00024364,2]
[390951767,1760230258894,-2500.0,0.00024364,2]
[390951768,1760230258903,-1501.93574929,0.00024364,2]
[390951769,1760230258912,-2500.0,0.00024364,2]
[390951770,1760230258921,-2504.07757736,0.00024364,2]
[390951771,1760230258930,-2500.0,0.00024364,2]
[390951772,1760230258940,-2500.0,0.00024364,2]
[390951773,1760230258950,-460.0,0.00024398,2]
[390951774,1760230258959,-22977.08,0.0002445,2]
[390951775,1760230258968,-500.0,0.00024454,2]
[390951776,1760230258978,-1000.0,0.00024521,2]
[390951777,1760230258987,-500.0,0.00024533,5]
[390951778,1760230258997,-500.0,0.00024616,2]
[390951779,1760230259006,-1435.37882442,0.00024647,2]
[390951780,1760230259015,-187.54162087,0.00024658,2]
[390951781,1760230259025,-150.0,0.00024658,2]
[390951782,1760230259035,-500.0,0.00024728,2]
[390951783,1760230259048,-286.6280648,0.00024728,2]
[390951784,1760230259057,-22309.888401,0.00024794,2]
[390951785,1760230259066,-2932.26075897,0.000248,2]
[390951786,1760230259075,-8114.3754242,0.000248,2]
[390951787,1760230259085,-1435.37882448,0.00024802,2]
[390951788,1760230259094,-500.0,0.00024807,5]
[390951789,1760230259104,-2000.0,0.00024816,2]
[390951790,1760230259114,-2000.0,0.00024816,2]
[390951791,1760230259126,-799.99999997,0.00024855,2]
[390951792,1760230259135,-226.19615026,0.00024861,2]
[390951793,1760230259144,-720.0,0.00024869,20]
[390951794,1760230259153,-272.04399707,0.00024871,2]
[390951795,1760230259162,-178.00183321,0.00024871,2]
[390951796,1760230259171,-178.00183321,0.00024871,2]
[390951797,1760230259180,-151.0,0.000249,7]
[390951798,1760230259189,-151.0,0.000249,7]
[390951799,1760230259198,-151.0,0.000249,7]
[390951800,1760230259207,-151.0,0.000249,7]
[390951801,1760230259216,-151.0,0.000249,7]
[390951802,1760230259225,-151.0,0.000249,7]
[390951803,1760230259234,-151.0,0.000249,7]
[390951804,1760230259244,-151.0,0.000249,7]
[390951805,1760230259253,-151.0,0.000249,7]
[390951806,1760230259262,-151.0,0.000249,7]
[390951807,1760230259272,-151.0,0.000249,7]
[390951808,1760230259281,-152.181283,0.000249,7]
[390951809,1760230259290,-151.0,0.000249,7]
[390951810,1760230259299,-151.0,0.000249,7]
[390951811,1760230259308,-151.0,0.000249,7]
[390951812,1760230259317,-151.0,0.000249,7]
[390951813,1760230259326,-151.0,0.000249,7]
[390951814,1760230259335,-202.6244,0.000249,7]
[390951815,1760230259345,-202.6244,0.000249,7]
[390951816,1760230259354,-202.6244,0.000249,7]
[390951817,1760230259366,-202.6244,0.000249,7]
[390951818,1760230259381,-439.098643,0.000249,7]
[390951819,1760230259395,-439.098643,0.000249,7]
[390951820,1760230259408,-151.0,0.000249,7]
[390951821,1760230259421,-439.098643,0.000249,7]
[390951822,1760230259433,-151.0,0.000249,7]
[390951823,1760230259447,-439.098643,0.000249,7]
[390951824,1760230259460,-151.0,0.000249,7]
[390951825,1760230259473,-151.0,0.000249,7]
[390951826,1760230259486,-151.0,0.000249,7]
[390951827,1760230259499,-151.0,0.000249,7]
[390951828,1760230259513,-372.045092,0.000249,7]
[390951829,1760230259526,-372.045092,0.000249,7]
[390951830,1760230259538,-151.0,0.000249,7]
[390951831,1760230259550,-372.045092,0.000249,7]
[390951832,1760230259562,-222.093736,0.000249,7]
[390951833,1760230259574,-372.045092,0.000249,7]
[390951834,1760230259588,-151.0,0.000249,7]
[390951835,1760230259600,-183.044696,0.000249,7]
[390951836,1760230259611,-183.044696,0.000249,7]
[390951837,1760230259624,-183.044696,0.000249,7]
[390951838,1760230259634,-183.044696,0.000249,7]
[390951839,1760230259645,-151.0,0.000249,7]
[390951840,1760230259656,-151.0,0.000249,7]
[390951841,1760230259668,-151.0,0.000249,2]
[390951842,1760230259680,-151.0,0.000249,7]
[390951843,1760230259692,-151.0,0.000249,7]
[390951844,1760230259704,-151.0,0.000249,7]
[390951845,1760230259717,-152.425179,0.000249,7]
[390951846,1760230259730,-151.0,0.000249,7]
[390951847,1760230259744,-151.0,0.000249,7]
[390951848,1760230259754,-151.0,0.000249,7]
[390951849,1760230259763,-151.0,0.000249,7]
[390951850,1760230259773,-151.0,0.000249,7]
[390951851,1760230259784,-173.392585,0.000249,7]
[390951852,1760230259798,-151.0,0.000249,7]
[390951853,1760230259810,-547.335366,0.000249,7]
[390951854,1760230259822,-547.335366,0.000249,7]
[390951855,1760230259832,-547.335366,0.000249,7]
[390951856,1760230259843,-547.335366,0.000249,7]
[390951857,1760230259855,-151.0,0.000249,7]
[390951858,1760230259868,-151.0,0.000249,7]
[390951859,1760230259880,-151.0,0.000249,7]
[390951860,1760230259890,-188.67864,0.000249,7]
[390951861,1760230259900,-151.0,0.000249,7]
[390951862,1760230259912,-229.02777,0.000249,7]
[390951863,1760230259923,-229.02777,0.000249,7]
[390951864,1760230259933,-229.02777,0.000249,7]
[390951865,1760230259944,-229.02777,0.000249,7]
[390951866,1760230259955,-151.0,0.000249,7]
[390951867,1760230259966,-151.0,0.000249,7]
[390951868,1760230259976,-151.0,0.000249,7]
[390951869,1760230259987,-151.0,0.000249,7]
[390951870,1760230259998,-151.0,0.000249,7]
[390951871,1760230260010,-151.0,0.000249,7]
[390951872,1760230260021,-151.0,0.000249,7]
[390951873,1760230260033,-151.0,0.000249,7]
[390951874,1760230260049,-723.727711,0.000249,7]
[390951875,1760230260061,-723.727711,0.000249,7]
[390951876,1760230260073,-723.727711,0.000249,7]
[390951877,1760230260085,-723.727711,0.000249,7]
[390951878,1760230260096,-151.0,0.000249,7]
[390951879,1760230260107,-151.0,0.000249,7]
[390951880,1760230260119,-151.0,0.000249,7]
[390951881,1760230260132,-256.893011,0.000249,7]
[390951882,1760230260144,-256.893011,0.000249,7]
[390951883,1760230260156,-256.893011,0.000249,7]
[390951884,1760230260168,-256.893011,0.000249,7]
[390951885,1760230260181,-210.786716,0.000249,7]
[390951886,1760230260193,-210.786716,0.000249,7]
[390951887,1760230260206,-210.786716,0.000249,7]
[390951888,1760230260217,-210.786716,0.000249,7]
[390951889,1760230260230,-151.0,0.000249,7]
[390951890,1760230260241,-250.964338,0.000249,7]
[390951891,1760230260253,-151.0,0.000249,7]
[390951892,1760230260264,-151.0,0.000249,7]
[390951893,1760230260276,-151.0,0.000249,7]
[390951894,1760230260287,-249.699503,0.000249,7]
[390951895,1760230260298,-249.699503,0.000249,7]
[390951896,1760230260309,-249.699503,0.000249,7]
[390951897,1760230260320,-249.699503,0.000249,7]
[390951898,1760230260330,-151.0,0.000249,7]
[390951899,1760230260342,-1000.0,0.000249,2]
[390951900,1760230260353,-1000.0,0.000249,2]
[390951901,1760230260364,-1000.0,0.000249,2]
[390951902,1760230260376,-1000.0,0.000249,2]
[390951903,1760230260387,-1000.0,0.000249,2]
[390951904,1760230260398,-438821.966962,0.000249,2]
[390951905,1760230260409,-1000.0,0.000249,2]
[390951906,1760230260420,-1000.0,0.000249,2]
[390951907,1760230260431,-1000.0,0.000249,2]
[390951908,1760230260443,-1000.0,0.000249,2]
[390951909,1760230260453,-1000.0,0.000249,2]
[390951910,1760230260465,-1000.0,0.000249,2]
[390951911,1760230260476,-1000.0,0.000249,2]
[390951912,1760230260486,-1000.0,0.000249,2]
[390951913,1760230260498,-192.099203,0.000249,7]
[390951914,1760230260509,-1000.0,0.000249,2]
[390951915,1760230260520,-1000.0,0.000249,2]
[390951916,1760230260530,-1000.0,0.000249,2]
[390951917,1760230260541,-1000.0,0.000249,2]
[390951918,1760230260552,-1000.0,0.000249,2]
[390951919,1760230260562,-192.099203,0.000249,7]
[390951920,1760230260573,-1000.0,0.000249,2]
[390951921,1760230260584,-1000.0,0.000249,2]
[390951922,1760230260595,-1000.0,0.000249,2]
[390951923,1760230260606,-1000.0,0.000249,2]
[390951924,1760230260617,-1000.0,0.000249,2]
[390951925,1760230260628,-192.099203,0.000249,7]
[390951926,1760230260639,-1000.0,0.000249,2]
[390951927,1760230260650,-1000.0,0.000249,2]
[390951928,1760230260661,-1000.0,0.000249,2]
[390951929,1760230260672,-1000.0,0.000249,2]
[390951930,1760230260682,-192.099203,0.000249,7]
[390951931,1760230260693,-1000.0,0.000249,2]
[390951932,1760230260704,-1000.0,0.000249,2]
[390951933,1760230260714,-1000.0,0.000249,2]
[390951934,1760230260727,-1000.0,0.000249,2]
[390951935,1760230260737,-1000.0,0.000249,2]
[390951936,1760230260748,-1000.0,0.000249,2]
[390951937,1760230260759,-151.0,0.000249,7]
[390951938,1760230260770,-1000.0,0.000249,2]
[390951939,1760230260780,-1000.0,0.000249,2]
[390951940,1760230260791,-1000.0,0.000249,2]
[390951941,1760230260802,-1000.0,0.000249,2]
[390951942,1760230260813,-1000.0,0.000249,2]